bitfinex/quotes_ETHUSD_20241120
["timestamp","ask_amount","ask_price","bid_price","bid_amount"]
[1732140609416,1.0295604,3080.9,3080.5,3.24615]
[1732140609726,1.0295604,3080.9,3080.6,0.10134448]
[1732140609946,1.0295604,3080.9,3080.7,0.10134448]
[1732140610160,0.55,3080.9,3080.5,4.03405]
[1732140610544,0.55,3080.9,3080.6,3.3474502]
[1732140610853,0.55,3080.9,3080.6,3.24611]
[1732140611159,0.55,3081.1,3080.5,0.7879]
[1732140611333,0.55,3081.1,3080.6,3.24612]
[1732140611537,0.55,3081.1,3080.7,0.10134355]
[1732140611848,0.55,3081.1,3080.8,0.10134355]
[1732140612053,0.55,3081.1,3080.9,0.10134355]
[1732140612253,0.55,3081.1,3080.8,3.24582]
[1732140612551,0.55,3081.1,3080.9,0.10133306]
[1732140612857,0.55,3081.1,3080.7,3.24593]
[1732140613065,0.55,3081.1,3080.8,3.34718298]
[1732140613234,0.55,3081.1,3080.9,0.10133298]
[1732140613435,0.55,3081.1,3080.8,3.24585]
[1732140613630,0.55,3081.1,3080.9,0.1013317]
[1732140614018,0.55,3081.1,3080.8,3.24585]
[1732140614975,0.55,3081.1,3080.9,0.10133194]
[1732140615118,0.55,3081.1,3080.8,3.24585]
[1732140615323,0.55,3081.1,3080.9,0.10133214]
[1732140615523,0.55,3081.1,3080.8,3.24585]
[1732140615935,0.55,3081.1,3080.9,0.10133211]
[1732140616176,0.55,3081.1,3080.8,3.24585]
[1732140616333,0.55,3081.1,3080.9,0.10133167]
[1732140616535,0.55,3081.1,3080.8,6.4917]
[1732140616729,0.55,3081.1,3080.9,0.1013308]
[1732140616977,0.55,3081.1,3080.8,6.4917]
[1732140617169,0.55,3081.1,3080.9,0.10133167]
[1732140617354,0.55,3081.1,3080.9,3.24573]
[1732140618463,0.55,3081.4,3081.0,3.894788]
[1732140618640,3.7953,3081.4,3080.9,4.00843]
[1732140618840,0.44706,3081.3,3080.9,0.7627]
[1732140619052,0.44706,3081.3,3080.9,4.00842]
[1732140619260,0.55,3081.4,3081.0,3.24564]
[1732140619436,0.55,3081.4,3080.9,4.00842]
[1732140620766,0.6753,3081.5,3081.0,3.24564]
[1732140621080,0.6753,3081.5,3080.9,4.0085]
[1732140621237,0.6753,3081.5,3081.0,3.24564]
[1732140621436,0.6753,3081.5,3081.1,3.24557]
[1732140623353,3.92049,3081.5,3080.9,4.0085]
[1732140623699,3.24547,3081.3,3081.0,0.10132681]
[1732140623990,3.24547,3081.3,3080.9,4.00849]
[1732140624294,3.24554,3081.2,3081.0,0.10132812]
[1732140624510,3.2456,3081.1,3080.9,0.7627]
[1732140624862,3.2455,3081.2,3080.9,0.7627]
[1732140625064,6.49108,3081.2,3080.9,0.7627]
[1732140625277,3.2455,3081.2,3080.9,0.7627]
[1732140625485,3.6766619,3081.3,3080.9,0.7627]
[1732140625993,3.6766619,3081.3,3081.0,0.10133055]
[1732140626151,3.24538,3081.3,3080.9,0.7627]
[1732140626365,3.24542,3081.3,3081.0,0.10132935]
[1732140626558,3.24542,3081.3,3080.9,0.7627]
[1732140627120,3.24549,3081.2,3080.9,0.7627]
[1732140627972,3.24549,3081.2,3081.0,0.10133095]
[1732140628174,3.24549,3081.2,3080.9,0.7627]
[1732140628374,3.24549,3081.2,3081.0,0.10133055]
[1732140628612,3.24549,3081.2,3080.9,0.7627]
[1732140628915,7.04065,3081.4,3081.0,0.10133019]
[1732140629116,7.04065,3081.4,3080.9,0.7627]
[1732140629320,7.04065,3081.4,3081.0,0.10132906]
[1732140629530,7.3883167,3081.4,3080.9,0.7627]
[1732140629693,7.3883167,3081.4,3081.0,0.10132883]
[1732140629890,4.1429467,3081.4,3080.9,0.7627]
[1732140630088,3.24543,3081.3,3081.0,0.10132842]
[1732140630407,3.24543,3081.3,3080.9,0.7627]
[1732140630578,3.24543,3081.3,3081.0,0.10132888]
[1732140630777,3.24543,3081.3,3080.9,0.7627]
[1732140630977,3.24543,3081.3,3081.0,0.10132801]
[1732140631209,3.24543,3081.3,3080.9,0.7627]
[1732140631920,3.24543,3081.3,3081.0,0.10132793]
[1732140632086,3.24543,3081.3,3080.9,0.7627]
[1732140632291,3.24543,3081.3,3081.0,0.10132733]
[1732140632473,3.24543,3081.3,3080.9,0.7627]
[1732140632678,3.24543,3081.3,3081.0,0.10132809]
[1732140633002,3.24543,3081.3,3080.9,0.7627]
[1732140633318,3.24543,3081.3,3081.0,0.10132771]
[1732140633518,3.24543,3081.3,3080.9,0.7627]
[1732140633812,3.24543,3081.3,3081.0,0.10132773]
[1732140634031,3.24543,3081.3,3080.9,0.7627]
[1732140634032,4.1429567,3081.4,3080.9,4.00844]
[1732140634317,3.79529,3081.4,3081.0,0.10132999]
[1732140634519,3.79529,3081.4,3080.9,4.00844]
[1732140634752,3.79529,3081.4,3081.0,0.10133022]
[1732140635053,3.79529,3081.4,3080.9,4.00844]
[1732140635348,3.24538,3081.3,3081.0,0.10133012]
[1732140635526,3.24538,3081.3,3080.9,4.00844]
[1732140635715,3.24538,3081.3,3081.0,0.10133047]
[1732140635916,3.24538,3081.3,3080.9,4.00844]
[1732140636122,3.24538,3081.3,3081.0,0.10133063]
[1732140636339,3.24538,3081.3,3080.9,0.7627]
[1732140636528,3.24538,3081.3,3081.0,0.10133039]
[1732140636714,3.24538,3081.3,3080.9,0.7627]
[1732140636915,3.24538,3081.3,3081.0,0.10132944]
[1732140637110,3.24538,3081.3,3080.9,0.7627]
[1732140637339,3.24538,3081.3,3081.0,0.10132826]
[1732140637539,3.24538,3081.3,3081.1,0.10132826]
[1732140637756,3.24538,3081.3,3080.9,0.7627]
[1732140637916,3.24538,3081.3,3081.0,0.10132779]
[1732140638116,3.24538,3081.3,3081.1,0.10132779]
[1732140638397,3.24538,3081.3,3080.9,0.7627]
[1732140638570,3.24538,3081.3,3081.0,0.10132765]
[1732140638867,6.49084,3081.3,3081.1,0.10132765]
[1732140639063,3.24538,3081.3,3080.9,0.7627]
[1732140639261,3.24549,3081.2,3081.0,0.10132868]
[1732140639420,3.24549,3081.2,3081.1,0.10132868]
[1732140640360,0.55,3081.4,3081.1,0.10132868]
[1732140640518,0.55,3081.4,3080.9,0.7627]
[1732140640519,3.24538,3081.3,3080.9,0.7627]
[1732140641017,3.24538,3081.3,3081.0,0.2026562]
[1732140641217,3.24538,3081.3,3081.1,0.10132812]
[1732140641419,3.24538,3081.3,3081.0,0.10132808]
[1732140641723,3.24538,3081.3,3081.1,0.10132782]
[1732140641941,3.24538,3081.3,3081.0,0.10132808]
[1732140642266,3.24538,3081.3,3081.1,0.10132716]
[1732140642559,3.24538,3081.3,3081.0,0.10132808]
[1732140642756,3.24538,3081.3,3081.1,0.1013277]
[1732140642933,3.24538,3081.3,3081.2,0.10132714]
[1732140643340,3.24538,3081.3,3081.0,0.10132808]
[1732140643522,3.24538,3081.3,3081.1,0.10132885]
[1732140643872,3.24538,3081.3,3081.0,0.10132808]
[1732140644367,3.24538,3081.3,3081.1,0.10132803]
[1732140644561,3.24538,3081.3,3081.2,0.10132803]
[1732140649497,3.24538,3081.3,3081.2,0.10132875]
[1732140650439,3.24538,3081.3,3080.9,0.7627]
[1732140650598,3.24538,3081.3,3081.2,0.10132755]
[1732140650794,3.24538,3081.3,3080.9,0.7627]
[1732140651115,3.24538,3081.3,3081.0,0.1013274]
[1732140651316,3.24538,3081.3,3081.1,0.1013274]
[1732140651516,3.24538,3081.3,3081.2,0.1013274]
[1732140654735,3.24496,3081.7,3081.3,0.7955]
[1732140654945,3.92001,3082.0,3081.4,0.51555214]
[1732140655093,3.92001,3082.0,3081.5,0.1013274]
[1732140655295,3.24471,3082.0,3081.7,0.7799]
[1732140655494,3.24446,3082.2,3081.7,0.7799]
[1732140655699,3.24467,3082.0,3081.7,0.7799]
[1732140655936,0.391976,3082.1,3081.7,0.7799]
[1732140656137,3.24466,3082.0,3081.7,0.7799]
[1732140659491,3.636516,3082.1,3081.7,0.7799]
[1732140661316,3.24467,3082.0,3081.7,0.7799]
[1732140663513,3.79443,3082.2,3081.7,0.7799]
[1732140663813,3.2447,3082.0,3081.7,0.7799]
[1732140664315,3.92008,3081.9,3081.4,0.77]
[1732140664489,0.55,3081.8,3081.4,0.77]
[1732140665087,3.24502,3081.7,3081.4,0.77]
[1732140665923,6.49007,3081.7,3081.4,0.77]
[1732140666083,3.24502,3081.7,3081.4,0.77]
[1732140667615,0.55,3081.8,3081.4,0.77]
[1732140667616,3.24509,3081.6,3081.4,0.77]
[1732140669504,0.55,3081.8,3081.4,0.77]
[1732140669685,3.79491,3081.8,3081.4,0.77]
[1732140670512,3.24501,3081.7,3081.4,0.77]
[1732140670671,0.55,3081.8,3081.4,0.77]
[1732140671414,3.79488,3081.8,3081.4,0.77]
[1732140671768,0.55,3081.9,3081.4,4.01525]
[1732140671967,3.79475,3081.9,3081.4,4.01525]
[1732140672172,3.24476,3081.9,3081.5,4.13744984]
[1732140672374,3.79463,3082.1,3081.6,0.10130749]
[1732140672613,0.703912,3082.0,3081.5,4.03614]
[1732140672770,3.79463,3082.1,3081.5,4.03614]
[1732140672975,3.79463,3082.1,3081.6,0.10130747]
[1732140673231,3.79463,3082.1,3081.5,4.03614]
[1732140673384,3.79463,3082.1,3081.6,0.10130671]
[1732140673714,3.79463,3082.1,3081.6,3.24503]
[1732140674089,0.55,3082.1,3081.7,4.00063]
[1732140674486,3.24424,3082.4,3081.7,0.7557]
[1732140674683,3.24424,3082.4,3081.9,4.00038]
[1732140675012,3.24409,3082.6,3082.0,3.24459]
[1732140675013,6.4882,3082.6,3082.0,3.24459]
[1732140675219,3.24409,3082.6,3082.1,3.24453]
[1732140675384,3.24412,3082.5,3082.2,0.7853]
[1732140675718,3.24391,3082.7,3082.2,4.02973]
[1732140677812,3.24403,3082.6,3082.2,0.7853]
[1732140678728,3.24413,3082.5,3082.2,0.7853]
[1732140681233,3.24391,3082.7,3082.2,0.7853]
[1732140681389,6.48792,3082.7,3082.2,1.188287]
[1732140681797,3.24401,3082.6,3082.2,1.188287]
[1732140682799,3.24412,3082.5,3082.2,1.188287]
[1732140683024,3.24412,3082.5,3082.2,0.7853]
[1732140683564,3.24424,3082.4,3082.2,0.7853]
[1732140683709,3.24412,3082.5,3082.2,0.7853]
[1732140684342,6.48831,3082.5,3082.2,0.7853]
[1732140684559,3.24427,3082.4,3082.2,0.7853]
[1732140685350,3.24446,3082.2,3081.8,0.8281]
[1732140685539,3.24466,3082.0,3081.9,0.10129451]
[1732140685706,3.24466,3082.0,3081.7,0.8281]
[1732140686575,6.48897,3082.2,3081.7,0.8281]
[1732140686849,3.24459,3082.1,3081.7,0.8281]
[1732140689224,3.24472,3082.0,3081.7,0.8281]
[1732140690727,3.2447,3082.0,3081.7,0.8281]
[1732140690933,3.24483,3081.9,3081.7,0.8281]
[1732140691682,3.24485,3081.8,3081.5,0.8024]
[1732140692236,3.24508,3081.6,3081.0,0.8024]
[1732140692586,3.24508,3081.6,3081.1,3.24552]
[1732140692731,3.24508,3081.6,3081.1,3.34683321]
[1732140692937,3.24508,3081.6,3081.2,0.10131321]
[1732140694941,6.49025,3081.6,3081.2,0.10131321]
[1732140695533,3.24521,3081.5,3081.2,0.10131321]
[1732140695730,3.24521,3081.5,3081.3,0.10131321]
[1732140695964,3.24521,3081.5,3081.0,4.34809]
[1732140696170,3.24521,3081.5,3081.1,0.10131669]
[1732140696336,3.24521,3081.5,3081.2,0.10131669]
[1732140696549,3.24521,3081.5,3081.0,4.34809]
[1732140696749,3.24521,3081.5,3081.1,0.10131736]
[1732140696950,3.24521,3081.5,3081.2,0.10131736]
[1732140697148,3.24521,3081.5,3081.0,4.34809]
[1732140697480,3.79487,3081.8,3081.3,3.24528]
[1732140697769,3.79487,3081.8,3081.4,0.93351704]
[1732140697974,3.79487,3081.8,3081.4,0.8322]
[1732140699171,7.03982,3081.8,3081.4,0.8322]
[1732140699564,3.79487,3081.8,3081.4,0.8322]
[1732140699773,3.24499,3081.7,3081.4,0.8322]
[1732140699963,3.24496,3081.7,3081.4,0.8322]
[1732140701475,3.24456,3082.1,3081.5,3.24507]
[1732140701635,3.24456,3082.1,3081.6,0.7665]
[1732140702251,3.24456,3082.1,3081.6,4.0115]
[1732140702736,3.2438,3082.8,3081.7,3.24489]
[1732140702941,3.2442,3082.5,3081.9,4.07318]
[1732140703440,3.2442,3082.5,3081.9,0.8285]
[1732140703744,3.2442,3082.5,3081.9,4.07318]
[1732140704145,3.2442,3082.5,3081.9,7.31786]
[1732140704370,3.2442,3082.5,3082.0,0.10129251]
[1732140704575,3.2442,3082.5,3081.9,7.31786]
[1732140704874,3.2442,3082.5,3081.9,4.07318]
[1732140705084,3.2442,3082.5,3081.9,7.31787]
[1732140705240,3.2442,3082.5,3081.9,4.07318]
[1732140705445,0.55,3082.6,3082.1,3.24449]
[1732140705875,3.79401,3082.6,3082.1,3.24449]
[1732140706392,0.6753,3082.7,3082.0,3.24462]
[1732140706393,0.55,3082.7,3082.3,0.8244]
[1732140706680,3.79386,3082.8,3082.3,0.8244]
[1732140707181,3.79386,3082.8,3082.3,4.06872]
[1732140707540,3.79386,3082.8,3082.3,0.8244]
[1732140707746,3.24397,3082.7,3082.3,0.8244]
[1732140708147,3.24402,3082.6,3082.3,0.8244]
[1732140708795,3.24413,3082.5,3082.3,0.8244]
[1732140709288,4.243843,3082.5,3081.9,0.8038]
[1732140709489,3.24435,3082.3,3081.9,0.8038]
[1732140709652,3.24454,3082.1,3081.6,3.245]
[1732140710155,3.24454,3082.1,3081.7,0.10129805]
[1732140710467,3.24454,3082.1,3081.8,0.10129805]
[1732140710788,3.79451,3082.2,3081.7,3.24495]
[1732140710959,3.79451,3082.2,3081.8,0.10129794]
[1732140711301,3.79451,3082.2,3081.7,3.24495]
[1732140711470,3.79451,3082.2,3081.8,0.10129848]
[1732140711795,3.79451,3082.2,3081.7,3.24495]
[1732140711943,3.79451,3082.2,3081.8,0.10129844]
[1732140712144,3.79451,3082.2,3081.7,3.24495]
[1732140712348,3.79451,3082.2,3081.8,0.10129799]
[1732140712661,3.79451,3082.2,3081.7,3.24495]
[1732140712863,3.79451,3082.2,3081.8,0.10129965]
[1732140713177,3.79451,3082.2,3081.7,3.24495]
[1732140713347,3.79451,3082.2,3081.8,0.10129862]
[1732140713572,3.79451,3082.2,3081.7,3.24495]
[1732140713773,3.79451,3082.2,3081.8,0.10130165]
[1732140714031,3.79451,3082.2,3081.7,3.24495]
[1732140714198,3.79451,3082.2,3081.8,0.10130018]
[1732140714380,3.79451,3082.2,3081.7,3.24495]
[1732140714702,3.79451,3082.2,3081.8,0.10129889]
[1732140714891,3.79451,3082.2,3081.7,3.24495]
[1732140715219,3.79451,3082.2,3081.8,0.10129955]
[1732140715425,3.79451,3082.2,3081.7,6.48984]
[1732140715597,3.79451,3082.2,3081.8,0.10129856]
[1732140715925,3.79451,3082.2,3081.9,0.10129856]
[1732140716274,3.79451,3082.2,3081.7,3.24489]
[1732140716514,3.79451,3082.2,3081.8,0.10129858]
[1732140716720,3.79451,3082.2,3081.7,6.48979]
[1732140717029,3.79451,3082.2,3081.8,0.10129861]
[1732140717182,3.79451,3082.2,3081.7,3.24489]
[1732140717380,0.55,3082.2,3081.8,3.34609762]
[1732140717584,3.79441,3082.3,3081.8,3.2448]
[1732140718697,3.79441,3082.3,3081.9,0.10129795]
[1732140718911,3.79441,3082.3,3081.8,3.2448]
[1732140719113,3.79441,3082.3,3081.9,0.10129775]
[1732140719318,3.79441,3082.3,3081.8,3.2448]
[1732140719845,0.55,3082.4,3081.6,3.24506]
[1732140719995,0.55,3082.4,3082.0,6.4891]
[1732140720193,0.55,3082.4,3082.0,3.24457]
[1732140720581,7.16325,3082.7,3082.1,4.02255]
[1732140720881,3.24372,3082.9,3082.4,3.24412]
[1732140721531,3.24372,3082.9,3082.5,3.2441]
[1732140721697,0.6753,3083.0,3082.5,3.24412]
[1732140721896,6.48707,3083.1,3082.6,3.24394]
[1732140721897,3.24352,3083.1,3082.6,3.24394]
[1732140722145,3.24352,3083.1,3082.6,3.24401]
[1732140722146,0.648707,3083.1,3082.6,3.24401]
[1732140722292,3.892197,3083.1,3082.6,3.24401]
[1732140722493,3.892197,3083.1,3082.6,3.24396]
[1732140722697,0.648707,3083.1,3082.7,3.2439]
[1732140722947,0.4567497,3083.0,3082.7,3.2439]
[1732140723237,3.892217,3083.1,3082.6,3.24396]
[1732140723432,0.648707,3083.1,3082.6,3.24395]
[1732140723639,0.648707,3083.1,3082.7,3.24383]
[1732140724940,3.892207,3083.1,3082.7,3.24383]
[1732140725347,3.892207,3083.1,3082.5,4.02785]
[1732140725550,3.2435,3083.1,3082.5,4.02785]
[1732140725847,0.55,3083.1,3082.5,0.7838]
[1732140726053,1.2253,3083.4,3083.0,3.24359]
[1732140726199,1.2253,3083.4,3083.0,4.01579]
[1732140726399,0.446843,3083.3,3083.0,4.01579]
[1732140727027,0.55,3083.6,3083.0,0.7722]
[1732140727235,0.6753,3083.7,3083.0,0.7722]
[1732140727404,3.91797,3083.9,3083.4,3.24316]
[1732140727603,0.324267,3083.8,3083.4,3.24316]
[1732140727919,0.324267,3083.8,3083.6,3.24296]
[1732140728129,3.91779,3084.1,3083.6,3.24296]
[1732140728344,0.6753,3084.1,3083.6,3.24296]
[1732140728499,3.91779,3084.1,3083.6,3.24296]
[1732140728699,0.391779,3084.0,3083.6,3.24296]
[1732140729145,0.55,3083.9,3083.6,3.24289]
[1732140729315,0.6753,3084.4,3083.6,3.24289]
[1732140729645,0.391737,3084.3,3083.8,3.24268]
[1732140729887,0.391737,3084.3,3083.9,3.24263]
[1732140730054,0.391737,3084.3,3083.8,3.24268]
[1732140730353,0.4309217,3084.2,3083.8,3.24268]
[1732140730517,0.55,3084.1,3083.8,3.24268]
[1732140730845,0.391737,3084.3,3084.0,0.7528]
[1732140732047,3.24237,3084.2,3083.8,0.7528]
[1732140732215,6.48461,3084.3,3083.8,0.7528]
[1732140732430,3.24234,3084.2,3083.8,0.7528]
[1732140732636,3.890803,3084.2,3083.8,0.7528]
[1732140732815,3.24257,3084.0,3083.5,0.7528]
[1732140733156,3.24257,3084.0,3083.2,3.2433]
[1732140733157,3.24281,3083.8,3083.2,0.7528]
[1732140733454,0.55,3083.7,3083.2,3.99614]
[1732140733628,3.79287,3083.7,3083.2,3.99614]
[1732140733827,4.5612883,3083.7,3083.2,3.99614]
[1732140734033,1.3184183,3083.7,3083.2,0.7528]
[1732140734213,0.6753,3084.3,3083.3,3.24327]
[1732140734410,3.24265,3083.9,3083.3,3.24327]
[1732140734615,3.24253,3084.1,3083.3,3.24327]
[1732140734859,0.929253,3084.0,3083.6,3.24295]
[1732140735214,0.929253,3084.0,3083.4,3.24317]
[1732140735452,4.171803,3084.0,3083.5,3.24305]
[1732140736178,0.6753,3084.3,3083.8,0.8014]
[1732140736330,3.24218,3084.4,3083.9,3.24263]
[1732140737745,3.24218,3084.4,3083.9,3.24259]
[1732140737945,3.958124,3084.4,3083.9,3.24259]
[1732140738673,0.715944,3084.4,3083.9,3.24259]
[1732140738862,0.715944,3084.4,3083.8,0.8014]
[1732140739066,0.6753,3084.6,3083.8,0.8014]
[1732140739363,3.79185,3084.7,3084.2,3.24226]
[1732140740788,3.79185,3084.7,3084.2,6.48453]
[1732140740789,0.55,3084.7,3084.2,6.48453]
[1732140741096,0.55,3084.7,3084.2,3.24226]
[1732140741504,3.79183,3084.7,3084.2,3.24226]
[1732140742071,7.03372,3084.7,3084.2,3.24226]
[1732140742303,3.79183,3084.7,3084.2,3.24226]
[1732140743259,3.79185,3084.7,3084.2,3.24226]
[1732140744406,3.24192,3084.6,3084.0,6.48496]
[1732140744779,3.24202,3084.5,3084.0,3.24247]
[1732140745976,0.55,3084.7,3083.8,4.04412]
[1732140746186,0.55,3084.7,3083.7,3.24285]
[1732140746187,3.24239,3084.2,3083.7,3.24285]
[1732140746396,0.6753,3084.3,3083.6,0.8079]
[1732140746605,0.6753,3084.3,3083.8,3.24274]
[1732140746906,0.6753,3084.3,3083.9,3.24256]
[1732140748401,0.55,3084.5,3084.0,3.24244]
[1732140748599,0.55,3084.5,3084.1,4.01127]
[1732140749721,0.55,3084.5,3084.2,3.24232]
[1732140750223,0.55,3084.5,3084.1,4.01133]
[1732140750888,0.55,3084.5,3084.1,7.979101]
[1732140751101,0.55,3084.5,3084.1,4.01128]
[1732140751791,0.55,3084.5,3084.1,0.7689]
[1732140752414,0.55,3084.5,3084.1,4.01131]
[1732140752724,0.55,3084.5,3084.1,7.25372]
[1732140753029,0.55,3084.5,3084.1,4.01131]
[1732140753177,0.55,3084.5,3084.2,3.24229]
[1732140753382,0.6753,3084.6,3084.3,3.24221]
[1732140753578,0.55,3084.7,3084.3,3.24221]
[1732140755822,0.6753,3084.8,3084.4,3.24206]
[1732140756027,4.46682,3085.0,3084.5,3.890427]
[1732140756259,4.46682,3085.0,3084.5,3.242]
[1732140758067,4.46682,3085.0,3084.5,6.48394]
[1732140758351,4.46682,3085.0,3084.4,4.07085]
[1732140758648,3.2416,3084.9,3084.4,4.07085]
[1732140759033,3.2416,3084.9,3084.5,3.242]
[1732140759627,1.2253,3085.0,3084.6,3.24189]
[1732140759825,4.46684,3085.0,3084.5,3.242]
[1732140761857,4.46684,3085.0,3084.6,3.24189]
[1732140762261,4.46684,3085.0,3084.5,3.242]
[1732140763725,1.2253,3085.0,3084.6,3.24187]
[1732140763956,0.03146001,3085.1,3084.8,3.2417]
[1732140764166,0.03146001,3085.1,3084.9,0.648348]
[1732140764339,0.03146001,3085.1,3084.8,3.2417]
[1732140764987,0.03146001,3085.1,3084.6,3.24185]
[1732140764988,0.03146001,3085.1,3084.7,3.24175]
[1732140765182,0.03146001,3085.1,3084.8,0.10119876]
[1732140765477,0.03146001,3085.1,3084.7,3.24178]
[1732140765779,3.27290001,3085.1,3084.6,3.2419]
[1732140765974,3.27290001,3085.1,3084.7,0.10120027]
[1732140766176,3.27290001,3085.1,3084.8,0.10120007]
[1732140766332,3.27290001,3085.1,3084.6,3.24185]
[1732140766684,3.27290001,3085.1,3084.7,0.10119984]
[1732140766842,3.27290001,3085.1,3084.8,0.10119984]
[1732140766843,3.24152,3085.0,3084.8,0.10119984]
[1732140767029,3.24152,3085.0,3084.6,0.7719774]
[1732140767235,3.27290001,3085.1,3084.7,0.10120148]
[1732140767472,3.27290001,3085.1,3084.6,4.0138174]
[1732140767658,3.27290001,3085.1,3084.7,0.10120163]
[1732140767853,3.27290001,3085.1,3084.8,0.10120163]
[1732140768044,3.27290001,3085.1,3084.6,4.0138174]
[1732140768240,3.27290001,3085.1,3084.7,0.10120141]
[1732140768442,3.27290001,3085.1,3084.8,0.10120141]
[1732140768763,0.03146001,3085.1,3084.6,4.0138174]
[1732140768959,0.03146001,3085.1,3084.7,0.10120235]
[1732140769178,3.27286001,3085.1,3084.8,0.10120235]
[1732140769467,3.27286001,3085.1,3084.6,4.0138074]
[1732140769775,3.24151,3085.0,3084.7,0.10120259]
[1732140769974,3.24151,3085.0,3084.5,3.24201]
[1732140770174,3.27286001,3085.1,3084.6,3.34309136]
[1732140770380,3.27286001,3085.1,3084.7,0.10120136]
[1732140770683,3.27286001,3085.1,3084.6,3.24189]
[1732140770974,3.27286001,3085.1,3084.7,0.10120175]
[1732140771484,3.27286001,3085.1,3084.6,3.24189]
[1732140771637,3.27286001,3085.1,3084.7,0.10120214]
[1732140771976,3.27286001,3085.1,3084.6,3.24189]
[1732140772191,3.27286001,3085.1,3084.7,0.10120379]
[1732140772399,3.27286001,3085.1,3084.6,3.24189]
[1732140772543,3.27286001,3085.1,3084.7,0.10120171]
[1732140772887,3.24165,3084.9,3084.5,0.731286]
[1732140773031,3.24165,3084.9,3084.6,0.10120522]
[1732140773238,3.24165,3084.9,3084.5,0.731286]
[1732140773438,3.24165,3084.9,3084.6,0.10120456]
[1732140773637,3.24165,3084.9,3084.5,0.731286]
[1732140773852,3.24165,3084.9,3084.6,0.10120459]
[1732140774053,3.24165,3084.9,3084.5,0.731286]
[1732140774353,3.24165,3084.9,3084.6,0.10120537]
[1732140774555,3.24165,3084.9,3084.5,0.731286]
[1732140774786,3.24165,3084.9,3084.6,0.10120534]
[1732140775001,3.27290001,3085.1,3084.5,0.731286]
[1732140775188,3.24167,3084.9,3084.5,0.731286]
[1732140775387,3.24167,3084.9,3084.6,0.10120703]
[1732140775550,3.24167,3084.9,3084.5,0.731286]
[1732140775751,3.24167,3084.9,3084.6,0.10120515]
[1732140775980,3.24167,3084.9,3084.5,0.731286]
[1732140776299,0.6753,3085.0,3084.6,0.10120433]
[1732140776502,0.6753,3085.0,3084.3,4.04321]
[1732140776503,3.24176,3084.8,3084.3,4.04321]
[1732140776706,3.24176,3084.8,3084.4,0.10120674]
[1732140776903,3.24176,3084.8,3084.5,0.10120674]
[1732140777197,3.24176,3084.8,3084.3,4.367437]
[1732140777374,3.24176,3084.8,3084.4,0.10120847]
[1732140777585,3.24163,3084.9,3084.5,0.10120847]
[1732140777891,3.24176,3084.8,3084.3,4.367437]
[1732140778091,3.24176,3084.8,3084.4,0.10121004]
[1732140778466,3.24176,3084.8,3084.5,0.10121004]
[1732140778776,3.24176,3084.8,3084.3,4.367437]
[1732140778993,3.24176,3084.8,3084.4,0.10121049]
[1732140779192,3.24176,3084.8,3084.5,0.10121049]
[1732140779503,3.24181,3084.7,3084.3,4.367437]
[1732140779700,3.24181,3084.7,3084.4,0.10121085]
[1732140779886,3.24181,3084.7,3084.5,0.10121085]
[1732140780068,3.24181,3084.7,3084.3,0.801]
[1732140780269,3.24181,3084.7,3084.4,0.10121278]
[1732140780470,3.24181,3084.7,3084.5,0.10121278]
[1732140780696,3.24181,3084.7,3084.3,0.801]
[1732140781014,3.24181,3084.7,3084.4,0.10121247]
[1732140781166,3.24181,3084.7,3084.5,0.10121247]
[1732140781375,3.24181,3084.7,3084.3,0.801]
[1732140781376,3.24181,3084.7,3084.4,0.10121247]
[1732140781582,3.24181,3084.7,3084.5,0.10121312]
[1732140781817,3.24181,3084.7,3084.3,0.801]
[1732140782016,3.24181,3084.7,3084.4,0.1012131]
[1732140782317,3.24181,3084.7,3084.5,0.1012131]
[1732140782540,3.24191,3084.6,3084.3,0.801]
[1732140782703,3.24165,3084.9,3084.4,0.10121413]
[1732140782910,3.2418,3084.7,3084.5,0.10121413]
[1732140783113,3.2418,3084.7,3084.3,0.801]
[1732140783422,3.2418,3084.7,3084.4,0.10121415]
[1732140783629,3.2418,3084.7,3084.5,0.10121415]
[1732140783920,3.2418,3084.7,3084.3,0.801]
[1732140784092,3.2418,3084.7,3084.4,0.10121452]
[1732140784294,3.2418,3084.7,3084.5,0.10121452]
[1732140784499,3.2418,3084.7,3084.3,0.801]
[1732140784683,3.2418,3084.7,3084.4,0.10121492]
[1732140784887,3.24193,3084.6,3084.3,0.801]
[1732140785079,3.24193,3084.6,3084.4,0.10121592]
[1732140785276,3.24193,3084.6,3084.3,0.801]
[1732140785277,3.24193,3084.6,3084.5,0.10121612]
[1732140785480,3.24193,3084.6,3084.3,0.801]
[1732140785720,3.24193,3084.6,3084.4,0.10121582]
[1732140785921,3.24193,3084.6,3084.3,0.801]
[1732140786124,3.24193,3084.6,3084.4,0.10121527]
[1732140786418,3.24193,3084.6,3084.3,0.801]
[1732140788913,3.24179,3084.8,3084.3,0.801]
[1732140789113,3.24166,3084.9,3084.4,3.2421]
[1732140789659,3.24166,3084.9,3084.3,1.205332]
[1732140789660,3.2417,3084.8,3084.3,4.447552]
[1732140789954,3.24181,3084.7,3084.3,1.205332]
[1732140790115,3.24181,3084.7,3084.4,0.10121148]
[1732140791938,0.03146001,3085.1,3084.0,0.788]
[1732140791939,3.24213,3084.4,3084.0,0.788]
[1732140792117,3.24213,3084.4,3083.7,3.24281]
[1732140792118,3.24237,3084.2,3083.8,0.788]
[1732140792341,6.4848,3084.2,3083.8,0.788]
[1732140792611,3.24244,3084.1,3083.8,0.788]
[1732140793112,3.24237,3084.2,3083.8,0.788]
[1732140793317,6.4848,3084.2,3083.8,0.788]